bitfinex-derivatives/quotes_SOLF0:USTF0_20251026
["timestamp","ask_amount","ask_price","bid_price","bid_amount"]
[1761462344779,4.32492957,194.28,194.23,2.87]
[1761462344981,4.32492957,194.3,194.23,2.87]
[1761462345186,4.32492957,194.29,194.23,2.87]
[1761462345391,4.32492957,194.28,194.23,2.87]
[1761462345689,4.32492957,194.3,194.23,2.87]
[1761462345890,4.32492957,194.29,194.23,2.87]
[1761462346089,4.32492957,194.28,194.23,2.87]
[1761462346284,4.32492957,194.3,194.23,2.87]
[1761462346482,4.32492957,194.29,194.23,2.87]
[1761462346686,4.32492957,194.28,194.23,2.87]
[1761462346986,4.32492957,194.3,194.23,2.87]
[1761462347286,4.32492957,194.29,194.23,2.87]
[1761462347485,4.32492957,194.28,194.23,2.87]
[1761462347689,4.32492957,194.3,194.23,2.87]
[1761462347890,4.32492957,194.29,194.23,2.87]
[1761462348103,4.32492957,194.3,194.23,2.87]
[1761462348407,4.32492957,194.29,194.23,2.87]
[1761462348605,4.32492957,194.3,194.23,2.87]
[1761462348906,6.27884254,194.32,194.23,2.87]
[1761462348907,4.32492957,194.31,194.23,2.87]
[1761462349108,4.32492957,194.3,194.23,2.87]
[1761462349405,4.32492957,194.31,194.23,2.87]
[1761462349605,4.32492957,194.3,194.23,2.87]
[1761462349807,4.32492957,194.31,194.23,2.87]
[1761462350104,4.32492957,194.3,194.23,2.87]
[1761462350306,4.32492957,194.29,194.23,2.87]
[1761462350500,1.49255907,194.32,194.23,2.87]
[1761462350501,4.32492957,194.28,194.23,2.87]
[1761462350701,4.32492957,194.29,194.23,2.87]
[1761462351002,4.32492957,194.28,194.23,2.87]
[1761462351202,4.32492957,194.29,194.23,2.87]
[1761462351500,4.32492957,194.28,194.23,2.87]
[1761462351701,4.32492957,194.29,194.23,2.87]
[1761462351900,4.32492957,194.28,194.23,2.87]
[1761462352098,4.32492957,194.29,194.23,2.87]
[1761462352298,4.32492957,194.28,194.23,2.87]
[1761462352507,4.32492957,194.29,194.23,2.87]
[1761462352698,4.32492957,194.28,194.23,2.87]
[1761462352900,4.32492957,194.29,194.23,2.87]
[1761462353104,4.32492957,194.28,194.23,2.87]
[1761462353304,4.32492957,194.29,194.23,2.87]
[1761462353605,4.32492957,194.28,194.23,2.87]
[1761462353804,4.32492957,194.29,194.23,2.87]
[1761462353996,4.36591004,194.28,194.23,2.87]
[1761462354202,4.36591004,194.29,194.23,2.87]
[1761462354402,4.36591004,194.28,194.23,2.87]
[1761462354703,4.36591004,194.29,194.23,2.87]
[1761462354910,4.36591004,194.28,194.23,2.87]
[1761462355209,4.36591004,194.29,194.23,2.87]
[1761462355705,4.36591004,194.3,194.23,2.87]
[1761462355907,4.36591004,194.29,194.23,2.87]
[1761462356109,4.36591004,194.3,194.23,2.87]
[1761462356409,4.36591004,194.29,194.23,2.87]
[1761462356605,4.36591004,194.28,194.23,2.87]
[1761462356808,4.36591004,194.3,194.23,2.87]
[1761462357111,4.36591004,194.29,194.23,2.87]
[1761462357306,4.36591004,194.3,194.23,2.87]
[1761462357512,4.36591004,194.29,194.23,2.87]
[1761462357706,4.36591004,194.3,194.23,2.87]
[1761462357907,4.36591004,194.29,194.23,2.87]
[1761462358109,4.36591004,194.3,194.23,2.87]
[1761462358309,4.36591004,194.29,194.23,2.87]
[1761462358610,4.36591004,194.3,194.23,2.87]
[1761462358810,4.36591004,194.29,194.23,2.87]
[1761462359014,4.36591004,194.3,194.23,2.87]
[1761462359215,4.36591004,194.29,194.23,2.87]
[1761462359404,4.36591004,194.28,194.23,2.87]
[1761462359712,4.36591004,194.3,194.23,2.87]
[1761462360013,4.36591004,194.29,194.23,2.87]
[1761462360318,4.36591004,194.28,194.23,2.87]
[1761462360613,4.36591004,194.3,194.23,2.87]
[1761462360813,4.36591004,194.29,194.23,2.87]
[1761462361007,4.36591004,194.28,194.23,2.87]
[1761462361207,9.15219351,194.3,194.23,2.87]
[1761462361409,4.36591004,194.29,194.23,2.87]
[1761462361608,4.36591004,194.28,194.23,2.87]
[1761462361816,4.36591004,194.29,194.25,2.62]
[1761462362111,4.82192992,194.31,194.25,2.62]
[1761462362311,4.36938663,194.3,194.25,2.62]
[1761462362505,4.36938663,194.29,194.25,2.62]
[1761462362813,4.36938663,194.3,194.25,2.62]
[1761462363018,4.36938663,194.29,194.25,2.62]
[1761462363310,4.36938663,194.3,194.25,2.62]
[1761462363511,4.36938663,194.29,194.25,2.62]
[1761462363714,4.36938663,194.31,194.25,2.62]
[1761462363913,4.36938663,194.3,194.25,2.62]
[1761462364211,4.36938663,194.29,194.25,2.62]
[1761462364406,4.36938663,194.31,194.25,2.62]
[1761462364702,4.36938663,194.3,194.25,2.62]
[1761462364906,4.36938663,194.29,194.25,2.62]
[1761462365112,4.36938663,194.31,194.25,2.62]
[1761462365314,4.36938663,194.3,194.25,2.62]
[1761462365514,4.36938663,194.29,194.25,2.62]
[1761462365710,4.36938663,194.28,194.25,2.62]
[1761462365911,4.36938663,194.3,194.25,2.62]
[1761462366212,4.36938663,194.29,194.25,2.62]
[1761462366413,4.36880006,194.28,194.25,2.62]
[1761462366611,4.36880006,194.3,194.25,2.62]
[1761462366803,4.36880006,194.29,194.25,2.62]
[1761462367007,4.36880006,194.28,194.25,2.62]
[1761462367209,4.36880006,194.3,194.25,2.62]
[1761462367408,4.36880006,194.29,194.25,2.62]
[1761462367608,4.36880006,194.28,194.25,2.62]
[1761462367813,4.36880006,194.3,194.25,2.62]
[1761462368009,4.36880006,194.29,194.25,2.62]
[1761462368213,4.36880006,194.28,194.25,2.62]
[1761462368515,4.36880006,194.3,194.25,2.62]
[1761462368716,4.36880006,194.29,194.25,2.62]
[1761462369014,4.36880006,194.28,194.25,2.62]
[1761462369214,4.36880006,194.3,194.25,2.62]
[1761462369416,4.36880006,194.29,194.25,2.62]
[1761462369610,4.36880006,194.28,194.25,2.62]
[1761462369802,4.36880006,194.3,194.25,2.62]
[1761462370007,4.36880006,194.29,194.25,2.62]
[1761462370217,4.36880006,194.28,194.25,2.62]
[1761462370416,4.36880006,194.3,194.25,2.62]
[1761462370617,4.36880006,194.29,194.25,2.62]
[1761462370815,4.36880006,194.28,194.25,2.62]
[1761462371115,4.36880006,194.3,194.25,2.62]
[1761462371315,4.36880006,194.29,194.25,2.62]
[1761462371511,4.36880006,194.28,194.22,62.0]
[1761462371815,4.36880006,194.3,194.23,2.73]
[1761462372013,4.36880006,194.29,194.23,2.73]
[1761462372214,4.36880006,194.28,194.23,2.73]
[1761462372415,4.36880006,194.3,194.23,2.73]
[1761462372617,4.36880006,194.29,194.23,2.73]
[1761462372818,4.36880006,194.28,194.23,2.73]
[1761462373018,4.36880006,194.3,194.23,2.73]
[1761462373218,4.36880006,194.29,194.23,2.73]
[1761462373418,4.36880006,194.28,194.23,2.73]
[1761462373618,4.36880006,194.3,194.23,2.73]
[1761462373823,4.36880006,194.29,194.23,2.73]
[1761462374023,4.36880006,194.28,194.23,2.73]
[1761462374318,4.36880006,194.3,194.23,2.73]
[1761462374521,4.36880006,194.29,194.23,2.73]
[1761462374715,4.36880006,194.28,194.23,2.73]
[1761462374916,4.82192992,194.31,194.23,2.73]
[1761462374917,4.36880006,194.3,194.23,2.73]
[1761462375117,4.36880006,194.29,194.23,2.73]
[1761462375325,4.36880006,194.3,194.23,2.73]
[1761462375519,4.36880006,194.29,194.23,2.73]
[1761462375712,4.36880006,194.3,194.23,2.73]
[1761462375914,4.36880006,194.29,194.23,2.73]
[1761462376115,4.36880006,194.3,194.23,2.73]
[1761462376318,4.36880006,194.29,194.23,2.73]
[1761462376518,4.82192992,194.31,194.23,2.73]
[1761462376519,4.36880006,194.3,194.23,2.73]
[1761462376719,4.36880006,194.29,194.23,2.73]
[1761462376919,4.36880006,194.3,194.23,2.73]
[1761462377219,4.36880006,194.29,194.23,2.73]
[1761462377522,4.36880006,194.3,194.23,2.73]
[1761462377822,4.36880006,194.29,194.23,2.73]
[1761462378017,4.36880006,194.3,194.23,2.73]
[1761462378218,4.36880006,194.29,194.23,2.73]
[1761462378420,4.36880006,194.28,194.23,2.73]
[1761462378622,4.36880006,194.3,194.23,2.73]
[1761462378922,4.36880006,194.29,194.23,2.73]
[1761462379123,4.36880006,194.28,194.23,2.73]
[1761462379423,4.36880006,194.3,194.24,2.73]
[1761462379623,4.36880006,194.29,194.24,2.73]
[1761462379817,4.36880006,194.28,194.24,2.73]
[1761462380018,4.36880006,194.3,194.24,2.73]
[1761462380222,4.36880006,194.29,194.24,2.73]
[1761462380421,4.36880006,194.28,194.24,2.73]
[1761462380723,4.36880006,194.31,194.24,2.73]
[1761462380913,4.36880006,194.3,194.24,2.73]
[1761462381111,4.36880006,194.29,194.24,2.73]
[1761462381319,4.36880006,194.28,194.24,2.73]
[1761462381519,4.82192992,194.32,194.24,2.73]
[1761462381520,4.36880006,194.31,194.24,2.73]
[1761462381714,4.36880006,194.3,194.24,2.73]
[1761462381915,4.36880006,194.29,194.24,2.73]
[1761462382122,4.36880006,194.28,194.24,2.73]
[1761462382324,4.36880006,194.31,194.24,2.73]
[1761462382518,4.36880006,194.3,194.24,2.73]
[1761462382714,4.36880006,194.29,194.24,2.73]
[1761462382918,4.36880006,194.28,194.24,2.73]
[1761462383225,4.36880006,194.31,194.24,2.73]
[1761462383424,4.36880006,194.3,194.24,2.73]
[1761462383629,4.36880006,194.29,194.24,2.73]
[1761462383826,4.36880006,194.28,194.24,2.73]
[1761462384019,4.36880006,194.31,194.24,2.73]
[1761462384218,4.36880006,194.3,194.24,2.73]
[1761462384517,4.36880006,194.29,194.24,2.73]
[1761462384718,4.36880006,194.28,194.24,2.73]
[1761462385017,4.36880006,194.31,194.24,2.73]
[1761462385321,4.36880006,194.3,194.24,2.73]
[1761462385513,4.36880006,194.29,194.24,2.73]
[1761462385723,4.36880006,194.28,194.24,64.73]
[1761462386027,4.36880006,194.31,194.25,2.73]
[1761462386228,4.36880006,194.3,194.25,2.73]
[1761462386429,4.36880006,194.29,194.25,2.73]
[1761462386630,4.43091183,194.31,194.25,2.73]
[1761462386831,4.82192992,194.33,194.25,2.73]
[1761462386832,4.43091183,194.3,194.25,2.73]
[1761462387030,4.82192992,194.33,194.25,2.73]
[1761462387232,4.43082551,194.32,194.25,2.73]
[1761462387530,4.43082551,194.31,194.25,2.73]
[1761462387731,4.43082551,194.3,194.25,2.73]
[1761462388032,4.82192992,194.33,194.25,2.73]
[1761462388332,4.43042517,194.32,194.25,2.73]
[1761462388526,4.43042517,194.31,194.25,2.73]
[1761462388725,4.43042517,194.3,194.25,2.73]
[1761462388921,4.43042517,194.29,194.25,2.73]
[1761462389126,4.43042517,194.32,194.25,2.73]
[1761462389326,4.43042517,194.31,194.25,2.73]
[1761462389624,4.43042517,194.3,194.25,2.73]
[1761462389823,4.82192992,194.33,194.25,2.73]
[1761462390019,4.42995209,194.32,194.25,2.73]
[1761462390221,4.42995209,194.31,194.25,2.73]
[1761462390421,4.42995209,194.3,194.25,2.73]
[1761462390622,4.82192992,194.33,194.25,2.73]
[1761462390833,4.42979612,194.32,194.25,2.73]
[1761462391131,4.42979612,194.31,194.25,2.73]
[1761462391333,4.42979612,194.3,194.25,2.73]
[1761462391529,4.82192992,194.33,194.25,2.73]
[1761462391833,4.42967324,194.32,194.25,2.73]
[1761462392033,4.42967324,194.31,194.25,2.73]
[1761462392234,4.42967324,194.3,194.25,2.73]
[1761462392437,4.82192992,194.33,194.25,2.73]
[1761462392635,4.42958139,194.32,194.25,2.73]
[1761462392834,4.42958139,194.31,194.25,2.73]
[1761462393138,4.42958139,194.3,194.25,2.73]
[1761462393341,4.42946143,194.32,194.25,2.73]
[1761462393634,4.42946143,194.31,194.25,2.73]
[1761462393835,4.42946143,194.3,194.25,2.73]
[1761462394036,4.42946143,194.32,194.25,2.73]
[1761462394236,4.42946143,194.31,194.25,2.73]
[1761462394535,4.42946143,194.3,194.25,2.73]
[1761462394725,4.42946143,194.32,194.25,2.73]
[1761462394925,4.42946143,194.31,194.25,2.73]
[1761462395126,4.42946143,194.3,194.25,2.73]
[1761462395335,4.42946143,194.32,194.25,2.73]
[1761462395533,4.42946143,194.31,194.25,2.73]
[1761462395734,4.42946143,194.3,194.25,2.73]
[1761462395935,4.42946143,194.32,194.25,2.73]
[1761462396135,4.42946143,194.31,194.25,2.73]
[1761462396335,4.82192992,194.33,194.25,2.73]
[1761462396336,4.42946143,194.3,194.25,2.73]
[1761462396636,4.42946143,194.32,194.25,2.73]
[1761462396836,4.42946143,194.31,194.25,2.73]
[1761462397137,4.42946143,194.3,194.25,2.73]
[1761462397338,4.42946143,194.32,194.25,2.73]
[1761462397538,4.42946143,194.31,194.25,2.73]
[1761462397739,4.42946143,194.3,194.25,2.73]
[1761462397940,4.42946143,194.32,194.25,2.73]
[1761462398139,4.42946143,194.31,194.25,2.73]
[1761462398338,4.42946143,194.3,194.25,2.73]
[1761462398543,4.42946143,194.32,194.25,2.73]
[1761462398736,4.42946143,194.31,194.25,2.73]
[1761462398938,4.42946143,194.3,194.25,2.73]
[1761462399234,4.82192992,194.33,194.25,2.73]
[1761462399441,4.42964483,194.32,194.25,2.73]
[1761462399641,4.42964483,194.31,194.25,2.73]
[1761462399838,4.42964483,194.3,194.25,2.73]
[1761462400039,4.42973041,194.29,194.21,2.86]
[1761462400239,4.42973041,194.28,194.23,2.86]
[1761462400434,4.42973041,194.31,194.23,2.86]
[1761462400633,4.42973041,194.3,194.23,2.86]
[1761462400829,4.42973041,194.29,194.23,2.86]
[1761462401039,4.42973041,194.28,194.23,2.86]
[1761462401338,4.42973041,194.31,194.23,2.86]
[1761462401637,4.42973041,194.3,194.23,2.86]
[1761462401938,4.42973041,194.29,194.23,2.86]
[1761462402140,4.42973041,194.28,194.23,2.86]
[1761462402340,4.42973041,194.31,194.23,2.86]
[1761462402540,4.42973041,194.3,194.23,2.86]
[1761462402741,4.42973041,194.29,194.23,2.86]
[1761462402943,4.42973041,194.28,194.23,2.86]
[1761462403142,4.82192992,194.31,194.23,2.86]
[1761462403451,4.43078581,194.3,194.23,2.86]
[1761462403641,4.43078581,194.29,194.23,2.86]
[1761462403837,4.43078581,194.28,194.23,2.86]
[1761462404032,4.82192992,194.31,194.23,2.86]
[1761462404247,4.43078196,194.3,194.23,2.86]
[1761462404437,4.43078196,194.29,194.23,2.86]
[1761462404637,4.43078196,194.28,194.23,2.86]
[1761462404933,4.82192992,194.31,194.23,2.86]
[1761462405132,4.43077876,194.3,194.23,2.86]
[1761462405338,4.43077876,194.29,194.23,2.86]
[1761462405641,4.43077876,194.28,194.23,2.86]
[1761462405843,4.82192992,194.31,194.23,2.86]
[1761462406144,4.43077531,194.3,194.23,2.86]
[1761462406341,4.43077531,194.29,194.23,2.86]
[1761462406542,4.43077531,194.28,194.23,2.86]
[1761462406742,4.82192992,194.31,194.23,2.86]
[1761462406942,4.43089732,194.3,194.23,2.86]
[1761462407142,4.43089732,194.29,194.23,2.86]
[1761462407342,4.43089732,194.28,194.23,2.86]
[1761462407542,4.43089732,194.27,194.23,2.86]
[1761462407741,4.43089732,194.3,194.23,2.86]
[1761462407941,4.43089732,194.29,194.23,2.86]
[1761462408146,4.43089732,194.28,194.23,2.86]
[1761462408336,4.43089732,194.27,194.23,2.86]
[1761462408538,4.43089732,194.3,194.23,2.86]
[1761462408747,4.43089732,194.29,194.23,2.86]
[1761462409044,4.43089732,194.28,194.23,2.86]
[1761462409347,4.43089732,194.27,194.23,64.86]
[1761462409546,4.43089732,194.26,194.24,2.86]
[1761462409748,4.43089732,194.29,194.24,2.86]
[1761462409948,4.43089732,194.28,194.24,2.86]
[1761462410148,4.43089732,194.27,194.23,2.86]
[1761462410350,4.43089732,194.26,194.23,2.86]
[1761462410550,4.82192992,194.29,194.23,2.86]
[1761462410851,4.45886762,194.28,194.23,2.86]
[1761462411050,4.45886762,194.27,194.23,2.86]
[1761462411253,4.45886762,194.26,194.23,2.86]
[1761462411452,4.82192992,194.29,194.23,2.86]
[1761462411647,4.45832433,194.28,194.23,2.86]
[1761462411953,4.45832433,194.27,194.23,2.86]
[1761462412150,4.45832433,194.26,194.23,2.86]
[1761462412351,4.45783402,194.28,194.23,2.86]
[1761462412648,4.45783402,194.27,194.23,2.86]
[1761462412845,4.45783402,194.26,194.23,2.86]
[1761462413046,4.45783402,194.28,194.23,2.86]
[1761462413246,4.45783402,194.27,194.23,2.86]
[1761462413548,4.45783402,194.26,194.23,2.86]
[1761462413742,4.45783402,194.28,194.23,2.86]
[1761462413947,4.45783402,194.27,194.23,2.86]
[1761462414147,4.45783402,194.26,194.23,2.86]
[1761462414340,4.82192992,194.3,194.23,2.86]
[1761462414341,4.45783402,194.29,194.23,2.86]
[1761462414545,4.45783402,194.28,194.23,2.86]
[1761462414742,4.45783402,194.27,194.23,2.86]
[1761462414941,4.45783402,194.26,194.23,2.86]
[1761462415241,4.45783402,194.29,194.23,2.86]
[1761462415442,4.82192992,194.3,194.23,2.86]
[1761462415443,4.45783402,194.28,194.23,2.86]
[1761462415641,4.45783402,194.27,194.23,2.86]
[1761462415851,4.45783402,194.26,194.23,2.86]
[1761462416054,4.45783402,194.29,194.23,2.86]
[1761462416253,4.45783402,194.28,194.23,2.86]
[1761462416455,4.45783402,194.27,194.23,2.86]
[1761462416642,4.82192992,194.3,194.23,2.86]
[1761462416643,4.45783402,194.26,194.23,2.86]
[1761462416845,4.45783402,194.29,194.23,2.86]
[1761462417151,4.45783402,194.28,194.23,2.86]
[1761462417350,4.45783402,194.27,194.23,2.86]
[1761462417550,4.45783402,194.26,194.23,2.86]
[1761462417755,4.45783402,194.29,194.23,2.86]
[1761462417952,4.45783402,194.28,194.23,2.86]
[1761462418150,4.45783402,194.27,194.23,2.86]
[1761462418448,4.45783402,194.26,194.23,2.86]
[1761462418650,4.45783402,194.29,194.23,2.86]
[1761462418852,4.45783402,194.28,194.23,2.86]
[1761462419052,4.45783402,194.27,194.23,2.86]
[1761462419253,4.45783402,194.26,194.23,2.86]
[1761462419441,4.45783402,194.29,194.23,2.86]
[1761462419642,4.45783402,194.28,194.23,2.86]
[1761462419844,4.45783402,194.27,194.23,2.86]
[1761462420041,4.45783402,194.29,194.23,2.86]
[1761462420255,4.45783402,194.28,194.23,2.86]
[1761462420455,4.45783402,194.29,194.23,2.86]
[1761462420657,4.45783402,194.3,194.24,2.86]
[1761462420857,4.45783402,194.29,194.24,2.86]
[1761462421157,4.45783402,194.31,194.24,2.86]
[1761462421359,4.45783402,194.3,194.24,2.86]
[1761462421558,4.45783402,194.29,194.24,2.86]
[1761462421748,4.45783402,194.28,194.24,2.86]
[1761462421949,4.45783402,194.31,194.24,2.86]
[1761462422153,4.45783402,194.3,194.24,2.86]
[1761462422353,4.45783402,194.29,194.24,2.86]
[1761462422554,4.45783402,194.28,194.24,2.86]
[1761462422751,4.82192992,194.32,194.24,2.86]
[1761462422752,4.45783402,194.31,194.24,2.86]
[1761462422957,4.45783402,194.3,194.24,2.86]
[1761462423156,4.45783402,194.29,194.24,2.86]
[1761462423357,4.45783402,194.28,194.24,2.86]
[1761462423557,4.45783402,194.31,194.24,2.86]
[1761462423757,4.45783402,194.3,194.24,2.86]
[1761462423958,4.45783402,194.29,194.24,2.86]
[1761462424160,4.45783402,194.28,194.24,2.86]
[1761462424358,4.45783402,194.3,194.24,2.86]
[1761462424562,4.45783402,194.29,194.24,2.86]
[1761462424762,4.45783402,194.28,194.24,2.86]
[1761462425061,4.45783402,194.3,194.24,2.86]
[1761462425263,4.45783402,194.29,194.24,2.86]
[1761462425455,4.45783402,194.28,194.24,2.86]
[1761462425763,4.45783402,194.3,194.24,2.86]
[1761462425962,4.45783402,194.29,194.24,2.86]
[1761462426163,4.45783402,194.28,194.24,2.86]
[1761462426364,4.45783402,194.3,194.24,2.86]
[1761462426564,4.45783402,194.29,194.24,2.86]
[1761462426771,4.45783402,194.28,194.24,2.86]
[1761462427062,4.45783402,194.3,194.24,2.86]
[1761462427266,4.45783402,194.29,194.24,2.86]
[1761462427456,4.45783402,194.28,194.24,2.86]
[1761462427653,4.45783402,194.3,194.24,2.86]
[1761462427854,8.12984977,194.29,194.24,2.86]
[1761462428064,8.12984977,194.28,194.24,2.86]
[1761462428263,8.12984977,194.27,194.24,2.86]
[1761462428463,3.67201575,194.26,194.24,2.86]
[1761462428663,4.82192992,194.31,194.24,2.86]
[1761462428664,8.12660256,194.3,194.24,2.86]
[1761462428862,8.12660256,194.29,194.24,2.86]
[1761462429063,8.12660256,194.28,194.24,2.86]
[1761462429262,8.12660256,194.27,194.24,2.86]
[1761462429465,3.67201575,194.26,194.24,2.86]
[1761462429654,8.12654973,194.3,194.24,2.86]
[1761462429853,8.12654973,194.29,194.24,2.86]
[1761462430057,8.12654973,194.28,194.24,2.86]
[1761462430258,8.12654973,194.27,194.24,2.86]
[1761462430466,3.67201575,194.26,194.24,2.86]
[1761462430765,8.12652976,194.3,194.24,2.86]
[1761462430966,8.12652976,194.29,194.24,2.86]
[1761462431155,8.12652976,194.28,194.24,2.86]
[1761462431454,8.12652976,194.27,194.24,2.86]
[1761462431659,3.67201575,194.26,194.24,2.86]
[1761462431956,8.12652007,194.3,194.24,2.86]
[1761462432161,8.12652007,194.29,194.24,2.86]
[1761462432356,8.12652007,194.28,194.24,2.86]
[1761462432560,8.12652007,194.27,194.24,2.86]
[1761462432760,3.67201575,194.26,194.24,2.86]
[1761462432964,8.12673066,194.3,194.24,2.86]
[1761462433165,8.12673066,194.29,194.24,2.86]
[1761462433365,8.12673066,194.28,194.24,2.86]
[1761462433566,8.12673066,194.27,194.24,2.86]
[1761462433768,3.67201575,194.26,194.24,2.86]
[1761462433969,9.27685046,194.3,194.24,2.86]
[1761462434271,8.12704499,194.29,194.24,2.86]
[1761462434468,8.12704499,194.28,194.24,2.86]
[1761462434668,8.12704499,194.27,194.24,2.86]
[1761462434868,3.67212445,194.26,194.24,2.86]
[1761462435069,4.45511791,194.3,194.24,2.86]
[1761462435270,8.12754502,194.29,194.24,2.86]
[1761462435469,8.12754502,194.28,194.24,2.86]
[1761462435670,8.12754502,194.27,194.24,2.86]
[1761462435971,3.67242711,194.26,194.24,2.86]
[1761462436171,4.45534193,194.3,194.24,2.86]
[1761462436370,8.127953,194.29,194.24,2.86]
[1761462436677,8.127953,194.28,194.24,2.86]
[1761462436872,8.127953,194.27,194.24,2.86]
[1761462437066,3.67261107,194.26,194.24,2.86]
[1761462437266,4.45567467,194.29,194.24,2.86]
[1761462437467,8.12849396,194.28,194.24,2.86]
[1761462437668,8.12849396,194.27,194.24,2.86]
[1761462437865,3.67281929,194.26,194.24,2.86]
[1761462438175,4.45587566,194.29,194.24,2.86]
[1761462438377,8.12898328,194.28,194.24,2.86]
[1761462438676,8.12898328,194.27,194.24,2.86]
[1761462438875,3.67310762,194.26,194.24,2.86]
[1761462439064,4.45098591,194.29,194.24,2.86]
[1761462439264,8.12430325,194.28,194.24,2.86]
[1761462439464,8.12430325,194.27,194.24,2.86]
[1761462439670,3.67331734,194.26,194.24,2.86]
[1761462439866,4.45133861,194.29,194.24,2.86]
[1761462440069,8.12465595,194.28,194.24,2.86]
[1761462440264,8.12465595,194.27,194.24,2.86]
[1761462440468,3.67331734,194.26,194.24,2.86]
[1761462440666,4.82192992,194.3,194.24,2.86]
[1761462440667,4.45184736,194.29,194.24,2.86]
[1761462440873,8.12555022,194.28,194.24,2.86]
[1761462441172,8.12555022,194.27,194.24,2.86]
[1761462441472,3.67370286,194.26,194.24,2.86]
[1761462441673,4.45242618,194.29,194.24,2.86]
[1761462441882,8.12656727,194.28,194.24,2.86]
[1761462442083,8.12656727,194.27,194.24,2.86]
[1761462442285,3.67414109,194.26,194.24,2.86]
[1761462442589,4.45309119,194.29,194.24,2.86]
[1761462442791,8.12773515,194.28,194.24,2.86]
[1761462443088,8.12773515,194.27,194.24,2.86]
[1761462443292,8.12843274,194.26,194.24,2.86]
[1761462443488,3.67464396,194.25,194.24,2.86]
[1761462450396,3.67699072,194.25,194.24,2.86]
[1761462452296,8.13240514,194.29,194.24,2.86]
[1761462452497,4.45538586,194.28,194.26,2.74]
[1761462452800,4.45538586,194.31,194.26,2.74]
[1761462452986,4.45538586,194.3,194.26,2.74]
[1761462453187,4.45538586,194.29,194.26,2.74]
[1761462453499,4.45538586,194.28,194.26,2.74]
[1761462453699,4.45538586,194.31,194.26,2.74]
[1761462453899,4.45538586,194.3,194.26,2.74]
[1761462454100,4.45538586,194.29,194.26,2.74]
[1761462454299,4.82119701,194.32,194.26,2.74]
[1761462454495,4.45404693,194.31,194.26,2.74]
[1761462454701,4.45404693,194.3,194.26,2.74]
[1761462454999,4.45404693,194.29,194.26,2.74]
[1761462455200,4.82119701,194.32,194.26,2.74]
[1761462455402,4.45357866,194.31,194.26,2.74]
[1761462455599,4.45357866,194.3,194.26,2.74]
[1761462455801,4.45357866,194.29,194.26,2.74]
[1761462455991,4.82119701,194.32,194.26,2.74]
[1761462456191,4.45359983,194.31,194.26,2.74]
[1761462456500,4.45359983,194.3,194.26,2.74]
[1761462456698,4.45359983,194.29,194.26,2.74]
[1761462456898,4.82119701,194.32,194.26,2.74]
[1761462457098,4.45322863,194.31,194.26,2.74]
[1761462457290,4.45322863,194.3,194.26,2.74]
[1761462457490,4.45322863,194.29,194.26,2.74]
[1761462457696,4.45322863,194.31,194.26,2.74]
[1761462457899,4.45322863,194.3,194.26,2.74]
[1761462458097,4.45322863,194.29,194.26,64.72]
[1761462458297,4.45322863,194.28,194.27,2.74]
[1761462458491,4.45322863,194.31,194.27,2.74]
[1761462458702,4.45322863,194.3,194.27,2.74]
[1761462458903,4.45322863,194.29,194.27,2.74]
[1761462459102,4.45322863,194.28,194.27,2.74]
[1761462459405,4.45322863,194.3,194.27,2.74]
[1761462459601,1.49235045,194.31,194.27,2.74]
[1761462459602,4.45322863,194.29,194.27,2.74]